[Event "*** SCC Grand Prix: Titled Tuesday Blitz"]
[Site "Chess.com"]
[Date "2020.10.13"]
[Round "1"]
[White "Aygehovit1992"]
[Black "Misticpikachu"]
[Result "1-0"]
[WhiteElo "2623"]
[BlackElo "2284"]
[TimeControl "180+1"]
[EndTime "10:07:56 PDT"]
[Termination "Aygehovit1992 won by checkmate"]

1. Nf3 {[%clk 0:03:00.5]} 1... d5 {[%clk 0:02:58.4]} 2. g3 {[%clk 0:02:59.7]}
2... e6 {[%clk 0:02:58.8]} 3. Bg2 {[%clk 0:02:59.3]} 3... Nf6 {[%clk 0:02:59]}
4. O-O {[%clk 0:02:59.5]} 4... Be7 {[%clk 0:02:59.4]} 5. d3 {[%clk 0:03:00]}
5... O-O {[%clk 0:03:00]} 6. c4 {[%clk 0:02:56.8]} 6... c5 {[%clk 0:02:58.9]} 7.
Nc3 {[%clk 0:02:52.2]} 7... Nc6 {[%clk 0:02:55.2]} 8. Bg5 {[%clk 0:02:49.9]}
8... h6 {[%clk 0:02:50]} 9. Bxf6 {[%clk 0:02:48.7]} 9... Bxf6 {[%clk 0:02:50.7]}
10. cxd5 {[%clk 0:02:49.4]} 10... exd5 {[%clk 0:02:51.2]} 11. Rc1 {[%clk
0:02:50]} 11... Be6 {[%clk 0:02:48.2]} 12. e4 {[%clk 0:02:48.1]} 12... Bxc3
{[%clk 0:02:27.2]} 13. Rxc3 {[%clk 0:02:45.4]} 13... dxe4 {[%clk 0:02:28.1]} 14.
dxe4 {[%clk 0:02:43.4]} 14... Qb6 {[%clk 0:02:27.6]} 15. Qc1 {[%clk 0:02:39.4]}
15... Nd4 {[%clk 0:02:26.2]} 16. Re1 {[%clk 0:02:34.9]} 16... Rac8 {[%clk
0:02:06.5]} 17. a3 {[%clk 0:02:25.1]} 17... Qb5 {[%clk 0:01:55.8]} 18. Bf1
{[%clk 0:02:13.7]} 18... Qa5 {[%clk 0:01:46.3]} 19. Ne5 {[%clk 0:02:08.8]} 19...
Rfe8 {[%clk 0:01:42.2]} 20. Nc4 {[%clk 0:02:06.1]} 20... Qc7 {[%clk 0:01:29.6]}
21. Qf4 {[%clk 0:02:03.1]} 21... Bxc4 {[%clk 0:01:17.7]} 22. Qxc7 {[%clk
0:01:56.7]} 22... Rxc7 {[%clk 0:01:16.4]} 23. Bxc4 {[%clk 0:01:57.2]} 23... b5
{[%clk 0:01:15.8]} 24. Bd5 {[%clk 0:01:56.5]} 24... Rd7 {[%clk 0:01:09.5]} 25.
Kf1 {[%clk 0:01:36.3]} 25... c4 {[%clk 0:00:51.9]} 26. f4 {[%clk 0:01:25.2]}
26... a5 {[%clk 0:00:46.4]} 27. Kf2 {[%clk 0:01:15.9]} 27... Ne6 {[%clk
0:00:44.6]} 28. Bc6 {[%clk 0:01:07.5]} 28... Rd2+ {[%clk 0:00:25.3]} 29. Ke3
{[%clk 0:01:07]} 29... Red8 {[%clk 0:00:25.1]} 30. Bxb5 {[%clk 0:01:01.1]} 30...
Rxb2 {[%clk 0:00:24]} 31. Bxc4 {[%clk 0:01:00.6]} 31... Nc5 {[%clk 0:00:23.5]}
32. h4 {[%clk 0:00:42.6]} 32... Rg2 {[%clk 0:00:22.4]} 33. Kf3 {[%clk
0:00:38.4]} 33... Rdd2 {[%clk 0:00:22.2]} 34. Re2 {[%clk 0:00:38.4]} 34... Rgxe2
{[%clk 0:00:19.8]} 35. Bxe2 {[%clk 0:00:39.3]} 35... Nxe4 {[%clk 0:00:18.8]} 36.
Rc8+ {[%clk 0:00:38.3]} 36... Kh7 {[%clk 0:00:17.9]} 37. Ke3 {[%clk 0:00:18.3]}
37... Ra2 {[%clk 0:00:14.4]} 38. Bd3 {[%clk 0:00:18.5]} 38... f5 {[%clk
0:00:14.8]} 39. g4 {[%clk 0:00:16.8]} 39... Rxa3 {[%clk 0:00:10.1]} 40. Kd4
{[%clk 0:00:16.6]} 40... Ra4+ {[%clk 0:00:07.1]} 41. Ke5 {[%clk 0:00:15.7]}
41... Ra3 {[%clk 0:00:05.4]} 42. Rd8 {[%clk 0:00:14.3]} 42... Rb3 {[%clk
0:00:02.2]} 43. gxf5 {[%clk 0:00:13.1]} 43... Nf6 {[%clk 0:00:02.2]} 44. Bc4
{[%clk 0:00:06.8]} 44... Ng4+ {[%clk 0:00:02.7]} 45. Kd4 {[%clk 0:00:06]} 45...
Rb4 {[%clk 0:00:03.2]} 46. Kc3 {[%clk 0:00:05.4]} 46... Nf6 {[%clk 0:00:02.9]}
47. Bf7 {[%clk 0:00:05.3]} 47... Rb6 {[%clk 0:00:02.9]} 48. Bg6# {[%clk
0:00:05.4]} 1-0

[Event "*** SCC Grand Prix: Titled Tuesday Blitz"]
[Site "Chess.com"]
[Date "2020.10.13"]
[Round "1"]
[White "PauloCesarCosta_sad"]
[Black "CheckThis4"]
[Result "0-1"]
[WhiteElo "2275"]
[BlackElo "2607"]
[TimeControl "180+1"]
[EndTime "10:07:56 PDT"]
[Termination "CheckThis4 won on time"]

1. Nf3 {[%clk 0:03:00.9]} 1... d5 {[%clk 0:02:57.7]} 2. d4 {[%clk 0:02:58.9]}
2... Nf6 {[%clk 0:02:56.4]} 3. c4 {[%clk 0:02:58.7]} 3... e6 {[%clk 0:02:56.1]}
4. Nc3 {[%clk 0:02:57.3]} 4... dxc4 {[%clk 0:02:55.9]} 5. e3 {[%clk 0:02:55.6]}
5... a6 {[%clk 0:02:54]} 6. a4 {[%clk 0:02:53.6]} 6... c5 {[%clk 0:02:53.8]} 7.
Bxc4 {[%clk 0:02:52.4]} 7... Nc6 {[%clk 0:02:54.4]} 8. O-O {[%clk 0:02:51.3]}
8... Be7 {[%clk 0:02:53.1]} 9. dxc5 {[%clk 0:02:50.5]} 9... Bxc5 {[%clk
0:02:44.3]} 10. Qxd8+ {[%clk 0:02:48.4]} 10... Kxd8 {[%clk 0:02:45.2]} 11. e4
{[%clk 0:02:35.5]} 11... h6 {[%clk 0:02:33.1]} 12. Bf4 {[%clk 0:02:33]} 12...
Ke7 {[%clk 0:02:27.5]} 13. Ne5 {[%clk 0:02:29.9]} 13... Nxe5 {[%clk 0:02:19.5]}
14. Bxe5 {[%clk 0:02:30]} 14... Bd7 {[%clk 0:02:19.2]} 15. Rad1 {[%clk
0:02:20.7]} 15... Rac8 {[%clk 0:02:15]} 16. Bxf6+ {[%clk 0:02:14]} 16... gxf6
{[%clk 0:02:13.4]} 17. Be2 {[%clk 0:01:56.8]} 17... Bb4 {[%clk 0:02:03.1]} 18.
Na2 {[%clk 0:01:42.4]} 18... Bd6 {[%clk 0:01:58.8]} 19. Nc3 {[%clk 0:01:37]}
19... Be5 {[%clk 0:01:56.1]} 20. Rd3 {[%clk 0:00:53.2]} 20... Bxc3 {[%clk
0:01:50.9]} 21. Rxc3 {[%clk 0:00:50.4]} 21... Rxc3 {[%clk 0:01:46.9]} 22. bxc3
{[%clk 0:00:51.3]} 22... Bxa4 {[%clk 0:01:46.8]} 23. Rb1 {[%clk 0:00:50.7]}
23... Bc6 {[%clk 0:01:43.1]} 24. f3 {[%clk 0:00:47.7]} 24... Rd8 {[%clk
0:01:39.9]} 25. Kf2 {[%clk 0:00:44.1]} 25... Rd2 {[%clk 0:01:37.5]} 26. Ke3
{[%clk 0:00:44.3]} 26... Rc2 {[%clk 0:01:29.5]} 27. Kd3 {[%clk 0:00:42.4]} 27...
Ra2 {[%clk 0:01:28.9]} 28. Ke3 {[%clk 0:00:40.8]} 28... Kd6 {[%clk 0:01:26.7]}
29. g3 {[%clk 0:00:34.4]} 29... Kc5 {[%clk 0:01:19.1]} 30. h3 {[%clk 0:00:31.7]}
30... a5 {[%clk 0:01:17.1]} 31. h4 {[%clk 0:00:18.9]} 31... a4 {[%clk
0:01:16.6]} 32. Rb4 {[%clk 0:00:17]} 32... b5 {[%clk 0:01:09.9]} 33. Rb1 {[%clk
0:00:13]} 33... a3 {[%clk 0:01:01.9]} 34. Rb3 {[%clk 0:00:12]} 34... Ra1 {[%clk
0:00:59.3]} 35. g4 {[%clk 0:00:09.5]} 35... Bd7 {[%clk 0:00:50.3]} 36. h5 {[%clk
0:00:09.3]} 36... e5 {[%clk 0:00:49.4]} 37. Rb4 {[%clk 0:00:08.9]} 37... a2
{[%clk 0:00:45.7]} 38. Rb2 {[%clk 0:00:08.2]} 38... Bc6 {[%clk 0:00:24.2]} 39.
Kf2 {[%clk 0:00:08.1]} 39... Rc1 {[%clk 0:00:21.2]} 40. Rxa2 {[%clk 0:00:07.7]}
40... Rxc3 {[%clk 0:00:21.7]} 41. Rb2 {[%clk 0:00:07.6]} 41... b4 {[%clk
0:00:21.8]} 42. Ke1 {[%clk 0:00:07.5]} 42... Ba4 {[%clk 0:00:19.3]} 43. Kd2
{[%clk 0:00:06.9]} 43... Ra3 {[%clk 0:00:19.2]} 44. Ke1 {[%clk 0:00:05.7]} 44...
Bb3 {[%clk 0:00:18]} 45. Kd2 {[%clk 0:00:04.8]} 45... Ra2 {[%clk 0:00:17.6]} 46.
Rxa2 {[%clk 0:00:04.3]} 46... Bxa2 {[%clk 0:00:18.5]} 47. Kc2 {[%clk 0:00:04.8]}
47... Be6 {[%clk 0:00:18]} 48. Kb2 {[%clk 0:00:03.8]} 48... Kd4 {[%clk
0:00:18.1]} 49. Kc2 {[%clk 0:00:02.8]} 49... Ke3 {[%clk 0:00:18.3]} 50. Bd1
{[%clk 0:00:03]} 50... Bc4 {[%clk 0:00:17.4]} 51. Kb2 {[%clk 0:00:02.1]} 51...
Kd2 {[%clk 0:00:15.9]} 52. Bb3 {[%clk 0:00:01.1]} 52... Be2 {[%clk 0:00:15.6]}
0-1

[Event "*** SCC Grand Prix: Titled Tuesday Blitz"]
[Site "Chess.com"]
[Date "2020.10.13"]
[Round "1"]
[White "GoltsevDmitry2000"]
[Black "GM4life"]
[Result "1-0"]
[WhiteElo "2680"]
[BlackElo "2346"]
[TimeControl "180+1"]
[EndTime "10:07:57 PDT"]
[Termination "GoltsevDmitry2000 won by checkmate"]

1. e4 {[%clk 0:02:52.4]} 1... c5 {[%clk 0:02:58.9]} 2. Nf3 {[%clk 0:02:48.6]}
2... d6 {[%clk 0:02:58.4]} 3. d4 {[%clk 0:02:46.9]} 3... cxd4 {[%clk 0:02:59.3]}
4. Nxd4 {[%clk 0:02:47.8]} 4... Nf6 {[%clk 0:02:59.8]} 5. Nc3 {[%clk 0:02:47.8]}
5... a6 {[%clk 0:03:00.4]} 6. Be2 {[%clk 0:02:47.3]} 6... e5 {[%clk 0:02:59.7]}
7. Nb3 {[%clk 0:02:46.7]} 7... Be7 {[%clk 0:02:59.3]} 8. a4 {[%clk 0:02:46.4]}
8... Be6 {[%clk 0:02:57.3]} 9. O-O {[%clk 0:02:45.5]} 9... O-O {[%clk
0:02:56.7]} 10. Be3 {[%clk 0:02:42.9]} 10... Nc6 {[%clk 0:02:54.5]} 11. f3
{[%clk 0:02:42.1]} 11... Rc8 {[%clk 0:02:52.2]} 12. Qd2 {[%clk 0:02:40.9]} 12...
d5 {[%clk 0:02:52.3]} 13. exd5 {[%clk 0:02:39.3]} 13... Nxd5 {[%clk 0:02:53.2]}
14. Nxd5 {[%clk 0:02:38.5]} 14... Bxd5 {[%clk 0:02:50.2]} 15. Rfd1 {[%clk
0:02:34.4]} 15... Bxb3 {[%clk 0:02:37.8]} 16. cxb3 {[%clk 0:02:35.3]} 16... Bb4
{[%clk 0:02:28.8]} 17. Qxd8 {[%clk 0:02:18.2]} 17... Rfxd8 {[%clk 0:02:20.6]}
18. Bb6 {[%clk 0:02:17.7]} 18... Rxd1+ {[%clk 0:02:13.1]} 19. Rxd1 {[%clk
0:02:18.6]} 19... Nd4 {[%clk 0:02:08.7]} 20. Bc4 {[%clk 0:02:12.4]} 20... Bc5
{[%clk 0:02:06.9]} 21. Bxc5 {[%clk 0:02:11.1]} 21... Rxc5 {[%clk 0:02:06.4]} 22.
Kf2 {[%clk 0:02:08.6]} 22... b5 {[%clk 0:02:02.3]} 23. axb5 {[%clk 0:02:05.4]}
23... axb5 {[%clk 0:02:03.2]} 24. Ra1 {[%clk 0:02:05.2]} 24... Kf8 {[%clk
0:01:58.5]} 25. Ra8+ {[%clk 0:02:02.6]} 25... Ke7 {[%clk 0:01:57.3]} 26. Ra7+
{[%clk 0:02:01.1]} 26... Kf6 {[%clk 0:01:53.1]} 27. Bxf7 {[%clk 0:01:52.1]}
27... Rc2+ {[%clk 0:01:52.8]} 28. Kg3 {[%clk 0:01:39.9]} 28... Rxb2 {[%clk
0:01:22.4]} 29. Bd5 {[%clk 0:01:33.9]} 29... Ne2+ {[%clk 0:01:20.7]} 30. Kg4
{[%clk 0:01:23.9]} 30... Nf4 {[%clk 0:01:15.8]} 31. Ra6+ {[%clk 0:01:16.2]}
31... Ke7 {[%clk 0:01:14.5]} 32. Bg8 {[%clk 0:01:15.1]} 32... Rxg2+ {[%clk
0:01:11.3]} 33. Kf5 {[%clk 0:01:14.3]} 33... Rxh2 {[%clk 0:00:52]} 34. Kxe5
{[%clk 0:01:13]} 34... Ng6+ {[%clk 0:00:47.9]} 35. Kd5 {[%clk 0:01:04.9]} 35...
Rh5+ {[%clk 0:00:46.5]} 36. Kd4 {[%clk 0:01:02.3]} 36... Nh4 {[%clk 0:00:37.5]}
37. f4 {[%clk 0:00:57.3]} 37... Nf5+ {[%clk 0:00:36.5]} 38. Ke4 {[%clk
0:00:53.5]} 38... Nd6+ {[%clk 0:00:36.2]} 39. Kf3 {[%clk 0:00:52.5]} 39... Rh3+
{[%clk 0:00:35.3]} 40. Kg4 {[%clk 0:00:52.5]} 40... Rh6 {[%clk 0:00:28.5]} 41.
Ra7+ {[%clk 0:00:51.8]} 41... Kf8 {[%clk 0:00:22.5]} 42. Bd5 {[%clk 0:00:49.2]}
42... Rg6+ {[%clk 0:00:22.1]} 43. Kf3 {[%clk 0:00:48.4]} 43... h5 {[%clk
0:00:17.4]} 44. Ra8+ {[%clk 0:00:42.5]} 44... Ke7 {[%clk 0:00:16.1]} 45. Ra7+
{[%clk 0:00:42.6]} 45... Kf6 {[%clk 0:00:15.7]} 46. Rd7 {[%clk 0:00:40.2]} 46...
Kf5 {[%clk 0:00:10.4]} 47. Rd8 {[%clk 0:00:32.2]} 47... h4 {[%clk 0:00:10.5]}
48. Rh8 {[%clk 0:00:20.7]} 48... Rh6 {[%clk 0:00:10.4]} 49. Rf8+ {[%clk
0:00:20.3]} 49... Rf6 {[%clk 0:00:10.3]} 50. Rh8 {[%clk 0:00:20.7]} 50... Rh6
{[%clk 0:00:10.1]} 51. Rg8 {[%clk 0:00:21.1]} 51... Kg6 {[%clk 0:00:10.6]} 52.
Rd8 {[%clk 0:00:18.2]} 52... h3 {[%clk 0:00:11]} 53. Rxd6+ {[%clk 0:00:17.9]}
53... Kf5 {[%clk 0:00:08.2]} 54. Be4# {[%clk 0:00:17.1]} 1-0

[Event "*** SCC Grand Prix: Titled Tuesday Blitz"]
[Site "Chess.com"]
[Date "2020.10.13"]
[Round "1"]
[White "Gerodot71"]
[Black "Sanan_Sjugirov"]
[Result "0-1"]
[WhiteElo "2457"]
[BlackElo "2892"]
[TimeControl "180+1"]
[EndTime "10:08:00 PDT"]
[Termination "Sanan_Sjugirov won by checkmate"]

1. d4 {[%clk 0:03:00.9]} 1... Nf6 {[%clk 0:02:59.5]} 2. c4 {[%clk 0:03:01.3]}
2... e6 {[%clk 0:02:59.8]} 3. Nf3 {[%clk 0:03:01.3]} 3... b6 {[%clk 0:02:59.4]}
4. a3 {[%clk 0:03:00.5]} 4... Bb7 {[%clk 0:02:59.7]} 5. Nc3 {[%clk 0:03:00.1]}
5... Ne4 {[%clk 0:03:00.3]} 6. Nxe4 {[%clk 0:02:56.2]} 6... Bxe4 {[%clk
0:03:01.2]} 7. e3 {[%clk 0:02:55.9]} 7... Be7 {[%clk 0:03:00.5]} 8. Bd3 {[%clk
0:02:54.9]} 8... d5 {[%clk 0:03:01]} 9. O-O {[%clk 0:02:49.7]} 9... O-O {[%clk
0:03:00.8]} 10. b3 {[%clk 0:02:41.5]} 10... Nd7 {[%clk 0:02:37.4]} 11. Bb2
{[%clk 0:02:37.3]} 11... a5 {[%clk 0:02:35.4]} 12. Qc2 {[%clk 0:02:30.1]} 12...
Bxf3 {[%clk 0:02:17.1]} 13. gxf3 {[%clk 0:02:28.7]} 13... Nf6 {[%clk 0:02:15.4]}
14. Kh1 {[%clk 0:02:22.9]} 14... Rc8 {[%clk 0:02:05.4]} 15. Rg1 {[%clk
0:02:14.1]} 15... Kh8 {[%clk 0:01:55.7]} 16. Rg2 {[%clk 0:02:01.8]} 16... Rg8
{[%clk 0:01:52.8]} 17. Rag1 {[%clk 0:01:58.6]} 17... c6 {[%clk 0:01:51.3]} 18.
Qe2 {[%clk 0:01:48]} 18... Qf8 {[%clk 0:01:49.7]} 19. a4 {[%clk 0:01:41.1]}
19... g6 {[%clk 0:01:34.7]} 20. Bb1 {[%clk 0:01:28.8]} 20... Qh6 {[%clk
0:01:33.6]} 21. f4 {[%clk 0:01:24]} 21... Rge8 {[%clk 0:01:19.3]} 22. Qf3 {[%clk
0:01:18]} 22... Qh5 {[%clk 0:01:14.9]} 23. Qg3 {[%clk 0:01:11]} 23... Kg8 {[%clk
0:01:03.6]} 24. f3 {[%clk 0:01:03.1]} 24... Red8 {[%clk 0:00:50.5]} 25. Qf2
{[%clk 0:00:56.3]} 25... Ne8 {[%clk 0:00:49.4]} 26. Bd3 {[%clk 0:00:46.3]} 26...
Ng7 {[%clk 0:00:48.9]} 27. e4 {[%clk 0:00:39]} 27... Qh4 {[%clk 0:00:43.8]} 28.
Qe3 {[%clk 0:00:33.1]} 28... Re8 {[%clk 0:00:38.4]} 29. f5 {[%clk 0:00:26]}
29... exf5 {[%clk 0:00:37.3]} 30. exf5 {[%clk 0:00:26.2]} 30... Bf6 {[%clk
0:00:34.5]} 31. Qd2 {[%clk 0:00:16.9]} 31... Qh5 {[%clk 0:00:24.3]} 32. fxg6
{[%clk 0:00:16.1]} 32... fxg6 {[%clk 0:00:21.9]} 33. Qf2 {[%clk 0:00:16]} 33...
Rf8 {[%clk 0:00:17.4]} 34. Bc1 {[%clk 0:00:12.7]} 34... Bh4 {[%clk 0:00:14.7]}
35. Qc2 {[%clk 0:00:10.5]} 35... Qxf3 {[%clk 0:00:12.5]} 36. Bh6 {[%clk
0:00:08.9]} 36... Rf6 {[%clk 0:00:05.9]} 37. Be2 {[%clk 0:00:06.2]} 37... Qe4
{[%clk 0:00:05.4]} 38. Bd3 {[%clk 0:00:06.7]} 38... Qf3 {[%clk 0:00:04.5]} 39.
Be2 {[%clk 0:00:07]} 39... Qf5 {[%clk 0:00:04.6]} 40. Bd3 {[%clk 0:00:06.5]}
40... Qh5 {[%clk 0:00:05.1]} 41. Bc1 {[%clk 0:00:06.3]} 41... Rcf8 {[%clk
0:00:04.8]} 42. cxd5 {[%clk 0:00:06.3]} 42... cxd5 {[%clk 0:00:04.9]} 43. Qc7
{[%clk 0:00:04.2]} 43... Qf3 {[%clk 0:00:04.8]} 44. Be2 {[%clk 0:00:03.6]} 44...
Qe4 {[%clk 0:00:05]} 45. Bg4 {[%clk 0:00:02.7]} 45... Rf1 {[%clk 0:00:04.4]} 46.
Bh6 {[%clk 0:00:02.5]} 46... Rxg1+ {[%clk 0:00:04.5]} 47. Kxg1 {[%clk
0:00:03.4]} 47... Qe1# {[%clk 0:00:04.8]} 0-1

[Event "*** SCC Grand Prix: Titled Tuesday Blitz"]
[Site "Chess.com"]
[Date "2020.10.13"]
[Round "1"]
[White "ChronicUnhappiness"]
[Black "W_Amadeus"]
[Result "0-1"]
[WhiteElo "2353"]
[BlackElo "2701"]
[TimeControl "180+1"]
[EndTime "10:08:00 PDT"]
[Termination "W_Amadeus won on time"]

1. c4 {[%clk 0:03:00.9]} 1... Nf6 {[%clk 0:02:58.8]} 2. g3 {[%clk 0:02:59.2]}
2... e6 {[%clk 0:02:55.3]} 3. Bg2 {[%clk 0:03:00.1]} 3... d5 {[%clk 0:02:54.9]}
4. Nf3 {[%clk 0:03:00.2]} 4... Be7 {[%clk 0:02:54.6]} 5. O-O {[%clk 0:03:00.3]}
5... O-O {[%clk 0:02:54.4]} 6. d4 {[%clk 0:03:00.7]} 6... dxc4 {[%clk
0:02:53.5]} 7. Qc2 {[%clk 0:03:01]} 7... c6 {[%clk 0:02:53.7]} 8. Qxc4 {[%clk
0:02:50.5]} 8... b5 {[%clk 0:02:52.1]} 9. Qb3 {[%clk 0:02:44.9]} 9... Bb7 {[%clk
0:02:51.2]} 10. a4 {[%clk 0:02:44.5]} 10... a6 {[%clk 0:02:42.1]} 11. Ne5 {[%clk
0:02:16.4]} 11... Qxd4 {[%clk 0:02:36.5]} 12. Bf4 {[%clk 0:02:15.2]} 12... Nd5
{[%clk 0:02:28.5]} 13. Rd1 {[%clk 0:02:02.2]} 13... Qb4 {[%clk 0:02:23.5]} 14.
Qxb4 {[%clk 0:01:15.9]} 14... Bxb4 {[%clk 0:02:24.4]} 15. Bxd5 {[%clk
0:01:15.3]} 15... cxd5 {[%clk 0:02:18.4]} 16. axb5 {[%clk 0:01:10.4]} 16... axb5
{[%clk 0:02:19.3]} 17. Rxa8 {[%clk 0:01:10.5]} 17... Bxa8 {[%clk 0:02:17.3]} 18.
Nc3 {[%clk 0:01:11.4]} 18... f6 {[%clk 0:01:58]} 19. Nd3 {[%clk 0:01:11.2]}
19... Bxc3 {[%clk 0:01:57.9]} 20. bxc3 {[%clk 0:01:03.2]} 20... Nd7 {[%clk
0:01:24.8]} 21. Rb1 {[%clk 0:00:54.9]} 21... e5 {[%clk 0:01:24.1]} 22. Be3
{[%clk 0:00:53.5]} 22... Rb8 {[%clk 0:01:23.6]} 23. Nc5 {[%clk 0:00:44.1]} 23...
Nxc5 {[%clk 0:01:16.8]} 24. Bxc5 {[%clk 0:00:43.7]} 24... h5 {[%clk 0:01:15.5]}
25. f3 {[%clk 0:00:43]} 25... Bc6 {[%clk 0:01:13.5]} 26. Ra1 {[%clk 0:00:40.1]}
26... Rc8 {[%clk 0:01:07.2]} 27. Ra7 {[%clk 0:00:26.8]} 27... Be8 {[%clk
0:01:01.9]} 28. Bb4 {[%clk 0:00:24.6]} 28... d4 {[%clk 0:00:54]} 29. cxd4 {[%clk
0:00:23.2]} 29... exd4 {[%clk 0:00:54.9]} 30. Kf2 {[%clk 0:00:20.2]} 30... Bg6
{[%clk 0:00:36.1]} 31. Rb7 {[%clk 0:00:15.3]} 31... Rc2 {[%clk 0:00:22.5]} 32.
Ke1 {[%clk 0:00:15.5]} 32... d3 {[%clk 0:00:21.7]} 33. exd3 {[%clk 0:00:12.9]}
33... Bxd3 {[%clk 0:00:22.6]} 34. h4 {[%clk 0:00:12.7]} 34... Re2+ {[%clk
0:00:19.5]} 35. Kd1 {[%clk 0:00:12.4]} 35... Rg2 {[%clk 0:00:19.9]} 36. Bd6
{[%clk 0:00:12.1]} 36... Bc4 {[%clk 0:00:13.9]} 37. Rb8+ {[%clk 0:00:11.3]}
37... Kh7 {[%clk 0:00:14.1]} 38. Rb7 {[%clk 0:00:11.2]} 38... Kg8 {[%clk
0:00:14.5]} 39. Rb8+ {[%clk 0:00:10.9]} 39... Kf7 {[%clk 0:00:15]} 40. Rb7+
{[%clk 0:00:11.6]} 40... Ke6 {[%clk 0:00:15.4]} 41. Bf8 {[%clk 0:00:11.5]} 41...
g5 {[%clk 0:00:14.4]} 42. hxg5 {[%clk 0:00:08.9]} 42... fxg5 {[%clk 0:00:15.3]}
43. Rb6+ {[%clk 0:00:06.3]} 43... Kf5 {[%clk 0:00:13.4]} 44. Bd6 {[%clk
0:00:07.2]} 44... h4 {[%clk 0:00:09.4]} 45. gxh4 {[%clk 0:00:07.2]} 45... gxh4
{[%clk 0:00:10.3]} 46. Bc7 {[%clk 0:00:05.2]} 46... h3 {[%clk 0:00:09.5]} 47.
Rh6 {[%clk 0:00:04.2]} 47... b4 {[%clk 0:00:05.4]} 48. Rh4 {[%clk 0:00:03.4]}
48... b3 {[%clk 0:00:04.6]} 49. Rxc4 {[%clk 0:00:02]} 49... b2 {[%clk
0:00:04.9]} 50. Rb4 {[%clk 0:00:02.3]} 50... h2 {[%clk 0:00:05.2]} 51. Bxh2
{[%clk 0:00:01]} 51... Rxh2 {[%clk 0:00:06.1]} 0-1

[Event "*** SCC Grand Prix: Titled Tuesday Blitz"]
[Site "Chess.com"]
[Date "2020.10.13"]
[Round "1"]
[White "Margency"]
[Black "andrzej"]
[Result "0-1"]
[WhiteElo "2593"]
[BlackElo "2295"]
[TimeControl "180+1"]
[EndTime "10:08:01 PDT"]
[Termination "andrzej won on time"]

1. e4 {[%clk 0:03:00.9]} 1... c6 {[%clk 0:02:59.3]} 2. d4 {[%clk 0:03:00.6]}
2... d5 {[%clk 0:03:00.2]} 3. exd5 {[%clk 0:03:01.5]} 3... cxd5 {[%clk
0:03:01.1]} 4. c4 {[%clk 0:03:02.4]} 4... Nf6 {[%clk 0:03:00.9]} 5. Nc3 {[%clk
0:03:03]} 5... Nc6 {[%clk 0:03:01.4]} 6. Bg5 {[%clk 0:03:03.4]} 6... g6 {[%clk
0:02:57.9]} 7. Bxf6 {[%clk 0:02:57]} 7... exf6 {[%clk 0:02:58]} 8. cxd5 {[%clk
0:02:57]} 8... Ne7 {[%clk 0:02:53.8]} 9. Bb5+ {[%clk 0:02:50.4]} 9... Bd7 {[%clk
0:02:53.5]} 10. Qe2 {[%clk 0:02:49.5]} 10... Bxb5 {[%clk 0:02:45.6]} 11. Qxb5+
{[%clk 0:02:46]} 11... Qd7 {[%clk 0:02:45.1]} 12. Qxd7+ {[%clk 0:02:16.8]} 12...
Kxd7 {[%clk 0:02:46]} 13. Nf3 {[%clk 0:02:14]} 13... Nf5 {[%clk 0:02:37.6]} 14.
O-O-O {[%clk 0:02:05.2]} 14... Rc8 {[%clk 0:02:29.5]} 15. Kb1 {[%clk 0:02:05.1]}
15... Bg7 {[%clk 0:02:22.4]} 16. Ne4 {[%clk 0:01:48.9]} 16... b6 {[%clk
0:02:21.1]} 17. h4 {[%clk 0:01:39.2]} 17... h5 {[%clk 0:02:18.9]} 18. Rhe1
{[%clk 0:01:38.5]} 18... Rhe8 {[%clk 0:02:17]} 19. Nc3 {[%clk 0:01:34.1]} 19...
Nd6 {[%clk 0:02:11.6]} 20. Re3 {[%clk 0:01:27.4]} 20... Nc4 {[%clk 0:02:00.4]}
21. Rxe8 {[%clk 0:01:20.2]} 21... Rxe8 {[%clk 0:02:01.3]} 22. b3 {[%clk
0:01:19.9]} 22... Nd6 {[%clk 0:01:56.3]} 23. Kc2 {[%clk 0:01:16.4]} 23... Bh6
{[%clk 0:01:55.6]} 24. Kd3 {[%clk 0:01:15.5]} 24... b5 {[%clk 0:01:34.7]} 25.
Re1 {[%clk 0:01:05.9]} 25... Rxe1 {[%clk 0:01:33.6]} 26. Nxe1 {[%clk 0:01:06]}
26... a6 {[%clk 0:01:28.8]} 27. g3 {[%clk 0:01:03.6]} 27... Nf5 {[%clk
0:01:28.6]} 28. Ne4 {[%clk 0:01:00.2]} 28... a5 {[%clk 0:01:18.2]} 29. Nxf6+
{[%clk 0:00:37.9]} 29... Kd6 {[%clk 0:01:18.3]} 30. Nc2 {[%clk 0:00:34.6]} 30...
Bg7 {[%clk 0:01:16]} 31. Ne8+ {[%clk 0:00:30.9]} 31... Kxd5 {[%clk 0:01:16.3]}
32. Nxg7 {[%clk 0:00:29.1]} 32... Nxg7 {[%clk 0:01:17.2]} 33. Ne3+ {[%clk
0:00:29.2]} 33... Kd6 {[%clk 0:01:17.3]} 34. a4 {[%clk 0:00:28.9]} 34... bxa4
{[%clk 0:01:15.3]} 35. bxa4 {[%clk 0:00:29.8]} 35... Ne6 {[%clk 0:01:15.3]} 36.
Nc4+ {[%clk 0:00:29.5]} 36... Kd5 {[%clk 0:01:15.1]} 37. Nxa5 {[%clk 0:00:27.8]}
37... Nxd4 {[%clk 0:01:15.4]} 38. Nc4 {[%clk 0:00:28.3]} 38... Nb3 {[%clk
0:01:14.3]} 39. a5 {[%clk 0:00:24.2]} 39... Nc5+ {[%clk 0:01:07.4]} 40. Kc3
{[%clk 0:00:24.4]} 40... Ne4+ {[%clk 0:01:05.5]} 41. Kb4 {[%clk 0:00:24.6]}
41... f6 {[%clk 0:00:47.4]} 42. a6 {[%clk 0:00:13.2]} 42... Kc6 {[%clk
0:00:46.9]} 43. Ka5 {[%clk 0:00:09.2]} 43... Nxf2 {[%clk 0:00:44.1]} 44. Nd6
{[%clk 0:00:09.5]} 44... Kxd6 {[%clk 0:00:24.5]} 45. a7 {[%clk 0:00:09.8]} 45...
Ne4 {[%clk 0:00:24.2]} 46. a8=Q {[%clk 0:00:10.1]} 46... Ke5 {[%clk 0:00:24.1]}
47. Qe8+ {[%clk 0:00:08.4]} 47... Kf5 {[%clk 0:00:24.5]} 48. Qd7+ {[%clk
0:00:07.8]} 48... Ke5 {[%clk 0:00:24.1]} 49. Qe7+ {[%clk 0:00:06]} 49... Kf5
{[%clk 0:00:24.2]} 50. Qa3 {[%clk 0:00:03.4]} 50... Kg4 {[%clk 0:00:23]} 51. Qe3
{[%clk 0:00:02.5]} 51... Nxg3 {[%clk 0:00:20.8]} 0-1